bitfinex/quotes_SOLUSD_20250416
["timestamp","ask_amount","ask_price","bid_price","bid_amount"]
[1744780008494,26.0,126.13,126.12,0.063]
[1744780008694,46.31258403,126.13,126.08,0.063]
[1744780008895,27.76223289,126.12,126.08,0.063]
[1744780009100,9.11258403,126.09,126.08,0.063]
[1744780009300,7.92958528,126.11,126.08,0.063]
[1744780009609,22.20496436,126.11,126.08,0.063]
[1744780010119,14.27537908,126.1,126.08,0.063]
[1744780010312,7.92958528,126.11,126.08,0.063]
[1744780010502,22.20577013,126.1,126.08,0.063]
[1744780012417,14.27537908,126.1,126.08,0.063]
[1744780012715,67.20544951,126.13,126.08,0.063]
[1744780012716,7.92895654,126.12,126.08,0.063]
[1744780013020,14.27537908,126.11,126.08,0.063]
[1744780013223,59.40384493,126.13,126.08,14.48054065]
[1744780013520,14.27537908,126.12,126.08,0.20516157]
[1744780014001,14.27537908,126.11,126.08,0.063]
[1744780015814,7.92932021,126.12,126.08,0.063]
[1744780015815,22.20469929,126.12,126.08,0.063]
[1744780016120,25.47537908,126.13,126.08,14.33837908]
[1744780016624,25.47537908,126.13,126.09,7.93084304]
[1744780017623,11.2,126.13,126.09,7.93084304]
[1744780017826,25.47537908,126.13,126.09,7.93084304]
[1744780020028,11.2,126.13,126.09,14.27537908]
[1744780020519,11.22,126.17,126.1,33.06718951]
[1744780020716,14.27537908,126.14,126.1,18.79181043]
[1744780020919,14.27537908,126.13,126.1,0.14216157]
[1744780021119,14.27537908,126.12,126.1,0.14216157]
[1744780021628,7.92661376,126.16,126.08,14.59597208]
[1744780021629,14.27537908,126.11,126.08,0.063]
[1744780023724,22.20443841,126.12,126.08,0.063]
[1744780024616,14.27537908,126.11,126.08,0.063]
[1744780024817,22.20443841,126.12,126.08,0.063]
[1744780025527,22.20398922,126.13,126.08,8.13649638]
[1744780025734,14.27537908,126.13,126.08,22.41187546]
[1744780025933,22.2039585,126.13,126.08,22.26971389]
[1744780026135,14.27537908,126.13,126.08,22.26971389]
[1744780026630,22.20356556,126.14,126.09,40.41754065]
[1744780026836,37.22,126.17,126.09,40.41754065]
[1744780026837,22.20268386,126.15,126.09,40.41754065]
[1744780027015,14.27537908,126.16,126.11,33.06718951]
[1744780027337,14.27537908,126.19,126.14,40.27537908]
[1744780027629,280.41952416,126.2,126.15,22.202137]
[1744780027831,33.21952416,126.2,126.15,22.202137]
[1744780029221,22.19996977,126.19,126.15,7.92675792]
[1744780029529,22.19996977,126.19,126.14,48.20288601]
[1744780029709,14.27537908,126.19,126.15,0.14216157]
[1744780030105,22.20003829,126.19,126.15,0.14216157]
[1744780031432,14.27537908,126.19,126.15,8.06919341]
[1744780031616,33.21952429,126.2,126.15,8.06919341]
[1744780031814,14.27537908,126.19,126.15,0.14216157]
[1744780033339,18.94414521,126.2,126.15,8.06879058]
[1744780033529,7.92353411,126.21,126.16,22.20149838]
[1744780033727,7.92296744,126.22,126.17,14.41754065]
[1744780033910,22.19834652,126.22,126.17,14.41754065]
[1744780035020,14.27537908,126.22,126.17,22.34294232]
[1744780035520,14.27537908,126.2,126.17,0.14216157]
[1744780035950,14.27537908,126.21,126.17,0.14216157]
[1744780036442,14.27537908,126.19,126.15,7.92707094]
[1744780036944,14.27537908,126.19,126.15,0.14216157]
[1744780037135,14.27537908,126.18,126.15,0.14216157]
[1744780037743,22.19868151,126.21,126.16,14.27537908]
[1744780037939,22.1983233,126.22,126.17,0.14216157]
[1744780038867,14.27537908,126.22,126.17,14.41754065]
[1744780039166,48.22770856,126.23,126.17,14.41754065]
[1744780039464,48.22770856,126.23,126.18,7.92518624]
[1744780039664,14.27537908,126.22,126.18,7.92518624]
[1744780040467,14.27537908,126.22,126.17,28.39950113]
[1744780040667,14.27537908,126.2,126.15,14.27537908]
[1744780040855,14.27537908,126.19,126.14,57.42357908]
[1744780041463,22.20015221,126.19,126.14,65.35086784]
[1744780041844,7.92477313,126.19,126.15,0.14216157]
[1744780042055,14.27537908,126.2,126.15,0.14216157]
[1744780042369,14.27537908,126.2,126.15,14.41754065]
[1744780043170,22.19979006,126.2,126.15,22.34445699]
[1744780044256,7.92267469,126.22,126.15,22.34445699]
[1744780044568,33.95216578,126.23,126.17,14.41754065]
[1744780044969,0.03,126.23,126.19,14.41754065]
[1744780045147,0.03,126.23,126.2,14.27537908]
[1744780046078,0.03,126.23,126.2,22.1988538]
[1744780047474,0.03,126.23,126.21,8.06515061]
[1744780048454,0.03,126.23,126.21,7.92298904]
[1744780048777,0.03,126.23,126.21,0.14216157]
[1744780049660,0.03,126.23,126.21,8.0654087]
[1744780050575,14.30537908,126.23,126.19,7.92406922]
[1744780050960,14.27537908,126.21,126.17,26.0]
[1744780051162,14.27537908,126.2,126.16,7.92617253]
[1744780051478,14.27537908,126.21,126.16,14.27537908]
[1744780051777,22.19842033,126.22,126.17,22.20119345]
[1744780052674,7.92304125,126.22,126.17,22.20119345]
[1744780052881,33.24773474,126.23,126.17,22.20119345]
[1744780053381,14.27537908,126.21,126.16,34.0683559]
[1744780053679,14.27537908,126.2,126.16,34.0683559]
[1744780054283,14.27537908,126.21,126.16,48.34373498]
[1744780054775,22.19871912,126.21,126.16,34.0683559]
[1744780055363,22.19871912,126.21,126.16,48.34373498]
[1744780055982,14.27537908,126.21,126.16,48.34373498]
[1744780056183,7.92284767,126.22,126.16,48.34373498]
[1744780056359,14.27537908,126.21,126.16,48.34373498]
[1744780057279,22.19876059,126.21,126.16,48.34373498]
[1744780057881,14.27537908,126.21,126.16,48.34373498]
[1744780058277,14.27537908,126.22,126.17,14.41754065]
[1744780058578,33.24742718,126.23,126.17,14.41754065]
[1744780060578,33.24742718,126.23,126.18,7.92518624]
[1744780061481,14.27537908,126.22,126.17,22.34307131]
[1744780061684,14.27537908,126.22,126.17,8.06769223]
[1744780061862,14.27537908,126.21,126.17,7.92553066]
[1744780062381,14.27537908,126.18,126.13,7.92832791]
[1744780062689,14.27537908,126.15,126.11,7.92934202]
[1744780062883,22.20252542,126.15,126.1,7.92993392]
[1744780063083,14.27537908,126.14,126.1,7.92993392]
[1744780063391,14.27537908,126.13,126.09,18.8907139]
[1744780063691,14.27537908,126.13,126.09,7.9307139]
[1744780064689,1.6333,126.15,126.1,14.27537908]
[1744780064861,22.20161717,126.17,126.12,14.27537908]
[1744780066095,22.20161717,126.17,126.12,22.20387716]
[1744780067593,14.27537908,126.17,126.12,22.20387716]
[1744780068089,14.27537908,126.17,126.12,7.92849808]
[1744780068392,22.20126489,126.17,126.12,22.20387716]
[1744780069189,26.81597908,126.18,126.12,22.20387716]
[1744780069578,26.81597908,126.18,126.14,7.92769938]
[1744780070485,34.74130451,126.18,126.14,7.92769938]
[1744780072187,34.74130451,126.18,126.13,8.07048948]
[1744780072396,34.74130451,126.18,126.13,22.34586856]
[1744780074084,26.81597908,126.18,126.13,22.34586856]
[1744780074894,14.27537908,126.17,126.13,7.92832791]
[1744780075272,23.78144625,126.18,126.13,7.92832791]
[1744780075678,14.27537908,126.17,126.13,7.92832791]
[1744780076292,22.20125475,126.17,126.13,7.92832791]
[1744780076887,22.20125475,126.17,126.12,22.20402033]
[1744780079090,23.7814107,126.18,126.13,14.27537908]
[1744780079291,1.6572,126.21,126.16,14.27537908]
[1744780079475,15.93257908,126.21,126.16,14.27537908]
[1744780079877,15.93257908,126.21,126.14,0.14216157]
[1744780079878,15.93257908,126.21,126.15,14.27537908]
[1744780080192,23.85617378,126.21,126.16,7.92644261]
[1744780080580,14.27537908,126.2,126.15,7.92687093]
[1744780081090,14.27537908,126.18,126.13,7.9280713]
[1744780081296,14.27537908,126.17,126.12,7.92864464]
[1744780081476,14.27537908,126.17,126.12,22.20402372]
[1744780082078,14.27537908,126.17,126.12,7.92864464]
[1744780082380,14.27537908,126.17,126.12,22.20402372]
[1744780083075,22.20131193,126.17,126.12,22.20402372]
[1744780086276,22.20131193,126.17,126.12,7.92864464]
[1744780086576,14.27537908,126.16,126.12,7.92864464]
[1744780086774,22.20131193,126.17,126.12,7.92864464]
[1744780087598,22.20131193,126.17,126.12,22.20402372]
[1744780087999,22.20131193,126.17,126.07,53.99836949]
[1744780088000,14.27537908,126.13,126.08,0.063]
[1744780088295,14.27537908,126.09,126.08,0.063]
[1744780088487,10.96,126.1,126.08,0.063]
[1744780089303,14.27537908,126.12,126.08,0.063]
[1744780090183,14.27537908,126.11,126.08,0.063]
[1744780092203,14.27537908,126.1,126.08,0.063]
[1744780092498,22.2061942,126.1,126.08,0.063]
[1744780095201,14.27537908,126.09,126.08,0.063]
[1744780096489,22.20622212,126.09,126.08,0.063]
[1744780097386,7.93084304,126.09,126.08,0.063]
[1744780097593,22.20622212,126.09,126.08,0.063]
[1744780098101,34.71792212,126.09,126.08,0.063]
[1744780099889,59.92943255,126.09,126.08,0.063]
[1744780100092,94.20481163,126.09,126.07,0.063]
[1744780100297,46.14216157,126.07,126.06,0.063]
[1744780100494,74.69291973,126.07,126.06,0.063]
[1744780100887,40.27537908,126.07,126.06,0.063]
[1744780101102,58.92502794,126.07,126.06,0.063]
[1744780101285,101.2746698,126.07,126.06,0.063]
[1744780101483,0.14216157,126.06,126.05,0.063]
[1744780101689,14.41754065,126.06,126.05,0.063]
[1744780101928,58.92502794,126.06,126.05,0.063]
[1744780102108,40.27537908,126.06,126.05,0.063]
[1744780102510,22.20748029,126.07,126.05,0.063]
[1744780103099,18.89165938,126.08,126.05,0.063]
[1744780103694,10.96,126.08,126.05,0.063]
[1744780104420,10.96,126.11,126.07,14.27537908]
[1744780104617,10.96,126.11,126.08,14.27537908]
[1744780104921,10.96,126.11,126.09,14.27537908]
[1744780105615,10.96,126.11,126.09,22.20604481]
[1744780106524,10.96,126.11,126.08,22.20658031]
[1744780106719,10.96,126.11,126.09,14.27537908]
[1744780107019,22.20335583,126.14,126.09,14.27537908]
[1744780107594,22.20335583,126.14,126.09,22.20585068]
[1744780107811,14.27537908,126.13,126.09,22.20585068]
[1744780108020,14.27537908,126.13,126.09,7.9304716]
[1744780108909,22.20372802,126.13,126.09,7.9304716]
[1744780109319,14.27537908,126.13,126.09,7.9304716]
[1744780110496,14.27537908,126.14,126.09,22.20585068]
[1744780111012,266.30730564,126.15,126.09,22.20585068]
[1744780111212,14.27537908,126.14,126.09,22.20585068]
[1744780112020,22.20322737,126.14,126.08,22.20685116]
[1744780114417,22.20322737,126.14,126.09,22.20562458]
[1744780114603,14.27537908,126.14,126.09,22.20562458]
[1744780115219,266.3073587,126.15,126.09,22.20562458]
[1744780115423,14.27537908,126.14,126.09,22.20562458]
[1744780116618,22.20311831,126.14,126.09,7.9302455]
[1744780120325,18.88738128,126.15,126.09,48.20562458]
[1744780120623,14.27537908,126.14,126.09,48.20562458]
[1744780121703,25.23537908,126.15,126.1,14.27537908]
[1744780122119,10.96,126.15,126.11,14.27537908]
[1744780122407,10.96,126.15,126.12,14.27537908]
[1744780123026,0.03,126.17,126.14,14.27537908]
[1744780123709,0.03,126.17,126.15,7.92707094]
[1744780124807,0.03,126.17,126.14,22.2028314]
[1744780125428,0.03,126.17,126.13,14.44813152]
[1744780125623,14.30537908,126.17,126.13,14.44813152]
[1744780125822,22.23139582,126.17,126.13,6.52]
[1744780126131,22.23139582,126.17,126.12,33.92868393]
[1744780126610,22.23139582,126.17,126.12,48.20406301]
[1744780128109,22.23139582,126.17,126.12,40.27537908]
[1744780128311,14.27537908,126.15,126.1,28.69663508]
[1744780128530,14.27537908,126.15,126.1,40.421256]
[1744780129534,22.20286407,126.15,126.1,40.421256]
[1744780132632,22.20182169,126.16,126.1,54.69663508]
[1744780133230,0.03,126.17,126.13,14.27537908]
[1744780134538,0.03,126.17,126.15,14.27537908]
[1744780134717,0.03,126.17,126.16,7.92644261]
[1744780134917,0.03,126.17,126.15,22.20213866]
[1744780135642,0.03,126.17,126.14,33.92740936]
[1744780135829,0.03,126.17,126.14,26.0]
[1744780136345,0.03,126.17,126.14,33.92763314]
[1744780137623,0.03,126.17,126.14,48.20301222]
[1744780141130,0.03,126.17,126.14,40.27537908]
[1744780141332,0.03,126.17,126.14,26.0]
[1744780141949,0.03,126.17,126.13,22.20338322]
[1744780142142,14.27537908,126.14,126.08,1.5077]
[1744780142438,10.96,126.16,126.08,15.78307908]
[1744780142439,14.27537908,126.13,126.08,15.78307908]
[1744780142648,14.27537908,126.13,126.09,7.93084304]
[1744780142831,14.27537908,126.13,126.09,33.93084304]
[1744780143347,22.20379041,126.13,126.09,26.0]
[1744780143935,22.20379041,126.13,126.08,22.20655065]
[1744780144246,22.20379041,126.13,126.08,48.20655065]
[1744780148552,22.20307846,126.14,126.08,48.20655065]
[1744780148728,7.92769938,126.14,126.09,14.27537908]
[1744780148927,22.20307846,126.14,126.09,14.27537908]
[1744780150053,22.20307846,126.14,126.09,22.20620158]
[1744780151755,7.92769938,126.14,126.09,22.20620158]
[1744780152054,10.96,126.16,126.13,14.27537908]
[1744780152257,0.03,126.17,126.15,14.27537908]
[1744780152459,0.03,126.17,126.16,14.27537908]
[1744780154354,0.03,126.17,126.16,22.20182169]
[1744780154567,0.03,126.17,126.16,22.34398326]
[1744780160567,0.03,126.17,126.15,48.20216715]
[1744780161936,0.03,126.17,126.16,14.27537908]
[1744780163864,0.03,126.17,126.15,26.0]
[1744780164665,0.03,126.17,126.15,40.27537908]
[1744780165164,0.03,126.17,126.15,26.0]
[1744780170271,0.03,126.17,126.13,14.27537908]
[1744780170768,15.92857908,126.17,126.11,48.20485229]
[1744780170962,1.6532,126.17,126.12,14.27537908]
[1744780171267,1.6532,126.17,126.12,9.12144848]
[1744780171658,7.92644261,126.16,126.12,9.12144848]
[1744780172170,7.92644261,126.16,126.12,17.05033139]
[1744780172569,9.57920262,126.17,126.12,17.05033139]
[1744780172773,1.6532,126.17,126.13,9.12144848]
[1744780172952,1.6532,126.17,126.14,9.12144848]
[1744780173463,0.03,126.17,126.15,9.12144848]
[1744780173651,0.03,126.17,126.15,17.04805074]
[1744780174150,0.03,126.17,126.15,7.92660226]
[1744780174354,0.03,126.17,126.14,43.04884028]
[1744780176981,0.03,126.17,126.15,17.04850028]
[1744780178470,0.03,126.17,126.15,7.9270518]
[1744780180369,0.03,126.17,126.14,35.12144848]
[1744780180673,0.03,126.17,126.13,9.26361005]
[1744780181575,0.03,126.17,126.14,26.0]
[1744780181754,0.03,126.17,126.13,17.19153607]
[1744780181953,0.03,126.17,126.13,17.0493745]
[1744780183472,7.95581437,126.17,126.13,17.0493745]
[1744780183673,0.03,126.17,126.13,17.0493745]
[1744780185667,0.03,126.17,126.14,9.26361005]
[1744780185867,0.03,126.17,126.15,9.12144848]
[1744780186374,0.03,126.17,126.16,9.12144848]
[1744780186565,0.03,126.17,126.16,9.26361005]
[1744780187775,0.03,126.17,126.16,17.19005266]
[1744780190576,0.03,126.17,126.16,7.92644261]
[1744780191994,0.03,126.17,126.16,17.04789109]
[1744780194058,0.03,126.17,126.16,7.92644261]
[1744780194461,0.03,126.17,126.16,17.04789109]
[1744780196883,0.03,126.17,126.16,7.92644261]
[1744780199387,0.03,126.17,126.16,17.04789109]
[1744780199892,0.03,126.17,126.16,7.92644261]
[1744780200072,0.03,126.17,126.15,33.9267426]
[1744780200695,0.03,126.17,126.16,9.26361005]
[1744780201688,0.03,126.17,126.16,9.12144848]
[1744780201888,0.03,126.17,126.16,9.26361005]
[1744780202089,0.03,126.17,126.16,17.19005266]
[1744780203191,0.03,126.17,126.16,7.92644261]
[1744780205384,0.03,126.17,126.16,17.19005266]
[1744780209691,0.03,126.17,126.16,7.92644261]
[1744780211692,0.03,126.17,126.15,33.92692823]
[1744780211881,0.03,126.17,126.13,7.92832791]
[1744780211882,9.15144848,126.17,126.13,7.92832791]
[1744780214396,0.03,126.17,126.13,17.04977639]
[1744780217498,0.03,126.17,126.14,9.12144848]
[1744780218694,0.03,126.17,126.15,9.12144848]
[1744780218902,0.03,126.17,126.16,9.12144848]
[1744780220404,0.03,126.17,126.16,17.04789109]
[1744780221805,0.03,126.17,126.15,9.12144848]
[1744780222806,0.03,126.17,126.15,35.12144848]
[1744780224106,0.03,126.17,126.16,7.92644261]
[1744780226015,0.03,126.17,126.16,17.04789109]
[1744780226210,0.03,126.17,126.16,35.83970152]
[1744780228005,0.03,126.2,126.19,44.64964886]
[1744780228306,0.03,126.2,126.19,53.77109734]
[1744780228699,0.03,126.2,126.19,53.91325891]
[1744780229883,0.03,126.2,126.19,61.83781711]
[1744780236516,0.03,126.2,126.18,7.92496001]
[1744780236701,0.03,126.2,126.19,9.12144848]
[1744780236904,0.03,126.2,126.19,9.26361005]
[1744780237316,0.03,126.2,126.19,35.83781711]
[1744780242309,0.03,126.2,126.19,9.26361005]
[1744780242626,0.03,126.2,126.19,61.83781711]
[1744780243424,0.03,126.2,126.19,35.83781711]
[1744780245727,0.03,126.22,126.21,44.79181043]
[1744780246018,0.03,126.22,126.21,53.91325891]
[1744780246226,0.03,126.22,126.21,61.83656134]
[1744780248328,0.03,126.22,126.21,35.26361005]
[1744780249031,0.03,126.22,126.21,61.83656134]
[1744780249534,0.03,126.22,126.21,53.91325891]
[1744780249732,0.03,126.22,126.21,26.0]
[1744780250025,1.5971,126.22,126.21,26.0]
[1744780250630,1.5971,126.22,126.21,33.92330243]
[1744780250816,1.5971,126.22,126.21,43.18691248]
[1744780252238,0.03,126.22,126.21,61.83656134]
[1744780252729,0.03,126.22,126.21,98.32235526]
[1744780253029,0.03,126.22,126.21,61.83656134]
[1744780253229,0.03,126.23,126.22,0.14216157]
[1744780253527,0.03,126.25,126.24,44.79181043]
[1744780253734,0.03,126.27,126.25,18.79181043]
[1744780253906,0.03,126.27,126.26,9.26361005]
[1744780254105,0.03,126.27,126.26,17.18377478]
[1744780254312,0.03,126.27,126.26,35.83342364]
[1744780258338,0.03,126.27,126.26,61.83342364]
[1744780260337,0.03,126.27,126.26,35.83342364]
[1744780262844,0.03,126.27,126.26,26.0]
[1744780263014,0.03,126.27,126.23,18.64964886]
[1744780263223,0.03,126.27,126.22,10.92]
[1744780263224,8.2039,126.27,126.22,10.92]
[1744780263415,8.2039,126.27,126.23,26.0]
[1744780263612,8.2039,126.27,126.23,35.12144848]
[1744780263842,25.2449007,126.27,126.22,10.92]
[1744780264034,25.2449007,126.27,126.22,20.04144848]
[1744780264239,25.2449007,126.27,126.22,46.04144848]
[1744780264436,16.12345222,126.27,126.22,53.96397349]
[1744780265147,16.12345222,126.27,126.22,59.07182738]
[1744780269343,16.12345222,126.27,126.23,14.22930237]
[1744780270037,8.2039,126.27,126.24,14.37146394]
[1744780270421,1.6777,126.27,126.26,14.37146394]
[1744780271838,1.6777,126.27,126.25,40.22930237]
[1744780272045,1.6777,126.27,126.25,26.0]
[1744780274842,9.597602,126.27,126.25,26.0]
[1744780275021,23.82690437,126.27,126.22,36.92]
[1744780275341,9.597602,126.27,126.22,59.07195045]
[1744780276920,1.6777,126.27,126.24,14.22930237]
[1744780277831,1.6777,126.27,126.25,14.22930237]
[1744780278033,1.6777,126.27,126.24,14.37146394]
[1744780278230,9.59735635,126.27,126.23,14.22930237]
[1744780279133,9.59735635,126.27,126.22,37.06216157]
[1744780279134,23.82665872,126.27,126.22,51.29146394]
[1744780279335,9.59735635,126.27,126.22,59.21410441]
[1744780279641,9.59735635,126.27,126.23,14.22930237]
[1744780280254,9.59735635,126.27,126.22,36.92]
[1744780280432,23.82665872,126.27,126.22,51.14930237]
[1744780280863,23.82665872,126.27,126.22,36.92]
[1744780281038,20.44790237,126.25,126.19,18.64964886]
[1744780281241,20.44790237,126.25,126.2,40.22930237]
[1744780281824,20.44790237,126.25,126.2,26.0]
[1744780282160,14.22930237,126.23,126.18,25.14930237]
[1744780282342,14.22930237,126.23,126.18,51.14930237]
[1744780282831,14.22930237,126.22,126.16,0.063]
[1744780283030,1.6551,126.2,126.16,0.063]
[1744780283236,9.5791945,126.2,126.16,14.29230237]
[1744780283442,23.80849687,126.2,126.16,0.063]
[1744780283756,30.45329687,126.2,126.16,0.063]
[1744780284733,16.2239945,126.2,126.16,14.29230237]
[1744780285350,1.6551,126.2,126.19,14.22930237]
[1744780286030,1.5005,126.23,126.19,14.37146394]
[1744780286342,1.5005,126.23,126.2,14.22930237]
[1744780286756,1.5005,126.23,126.21,14.22930237]
[1744780287529,9.42262384,126.23,126.2,14.22930237]
[1744780287756,9.42262384,126.23,126.19,40.22930237]
[1744780289457,9.42262384,126.23,126.19,48.15382479]
[1744780290639,1.5005,126.23,126.19,48.15382479]
[1744780290839,1.5005,126.23,126.2,14.22930237]
[1744780291262,1.5005,126.23,126.22,14.22930237]
[1744780293061,12.5671,126.26,126.22,22.15197706]
[1744780293360,12.5671,126.26,126.23,14.22930237]
[1744780293564,12.5671,126.26,126.22,22.15197706]
[1744780293751,20.48737803,126.26,126.22,14.22930237]
[1744780294552,34.7166804,126.26,126.2,14.22930237]
[1744780294757,14.22930237,126.25,126.2,14.22930237]
[1744780295264,22.15069696,126.25,126.2,14.22930237]
[1744780298671,22.15069696,126.25,126.2,22.15320886]
[1744780302276,22.15069696,126.25,126.2,14.22930237]
[1744780302579,7.92139459,126.25,126.2,14.22930237]
[1744780303374,22.15069696,126.25,126.19,33.92425182]
[1744780303577,22.15069696,126.25,126.2,14.22930237]
[1744780304165,7.92139459,126.25,126.2,14.22930237]
[1744780304374,7.92139459,126.25,126.21,14.22930237]
[1744780304591,20.48754218,126.26,126.21,14.22930237]
[1744780304755,1.6471,126.26,126.23,14.22930237]
[1744780304959,1.6471,126.26,126.21,18.79181043]
[1744780304960,1.6471,126.26,126.24,14.22930237]
[1744780305358,1.6471,126.26,126.22,26.0]
[1744780305563,0.03,126.27,126.25,14.22930237]
[1744780306375,0.03,126.27,126.25,22.14995586]
[1744780308078,0.03,126.27,126.26,14.22930237]
[1744780308863,0.03,126.27,126.26,26.0]
[1744780309063,0.03,126.27,126.26,40.22930237]
[1744780313882,0.03,126.27,126.26,48.29162867]
[1744780315187,0.03,126.27,126.26,66.94127753]
[1744780316091,0.03,126.27,126.26,40.37146394]
[1744780316471,0.03,126.27,126.26,48.29162867]
[1744780319293,0.03,126.27,126.26,43.16315868]
[1744780319664,0.03,126.27,126.26,61.81280754]
[1744780325900,0.03,126.29,126.27,18.79181043]
[1744780326091,0.03,126.29,126.28,71.64632347]
[1744780326492,20.01871293,126.35,126.3,0.14216157]
[1744780326687,1.5939,126.35,126.31,9.10083238]
[1744780327009,1.5939,126.35,126.32,9.10083238]
[1744780329613,1.5939,126.35,126.33,9.10083238]
[1744780331106,14.38297225,126.37,126.34,9.10083238]
[1744780331287,14.38297225,126.37,126.33,7.91577077]
[1744780331288,14.38297225,126.37,126.33,9.10083238]
[1744780331489,23.48380463,126.37,126.32,9.24299395]
[1744780331709,23.48380463,126.37,126.32,9.10083238]
[1744780333486,9.10083238,126.35,126.31,35.10083238]
[1744780333711,7.91514959,126.34,126.31,26.0]
[1744780333910,9.51574959,126.34,126.3,20.02083238]
[1744780334625,15.97677534,126.37,126.33,9.10083238]
[1744780334786,25.07760772,126.37,126.32,9.10083238]
[1744780334982,25.07760772,126.37,126.32,35.10083238]
[1744780335194,15.97677534,126.37,126.33,9.10083238]
[1744780335396,15.97677534,126.37,126.32,26.0]
[1744780335588,15.97677534,126.37,126.33,9.10083238]
[1744780335808,15.97677534,126.37,126.34,9.10083238]
[1744780336215,9.50737534,126.37,126.34,9.10083238]
[1744780338517,1.5938,126.37,126.36,9.10083238]
[1744780339019,1.5938,126.37,126.35,9.10083238]
[1744780339909,1.5938,126.37,126.34,9.10083238]
[1744780340115,1.5938,126.37,126.35,9.10083238]
[1744780343521,7.91226883,126.39,126.36,9.10083238]
[1744780343725,8.0754,126.4,126.36,9.10083238]
[1744780343726,15.98705809,126.4,126.36,9.10083238]
[1744780345526,1.5979,126.4,126.37,9.10083238]
[1744780346332,1.5979,126.4,126.38,9.10083238]
[1744780346824,0.03,126.4,126.39,9.10083238]
[1744780347831,0.03,126.4,126.39,17.01285073]
[1744780348213,0.03,126.4,126.39,9.10083238]
[1744780348429,0.03,126.4,126.39,17.01285073]
[1744780348736,0.03,126.4,126.39,9.10083238]
[1744780353538,0.03,126.4,126.39,26.0]
[1744780358729,0.03,126.4,126.39,43.1550123]
[1744780360149,0.03,126.4,126.39,35.10083238]
[1744780360352,0.03,126.4,126.39,26.0]
[1744780365354,0.03,126.4,126.37,9.10083238]
[1744780365554,0.03,126.4,126.37,43.01403372]
[1744780366154,0.03,126.4,126.37,26.0]
[1744780366354,0.03,126.4,126.35,20.02083238]
[1744780366532,0.03,126.4,126.35,27.93532921]
[1744780366732,0.03,126.4,126.35,46.02083238]
[1744780367456,0.03,126.4,126.36,9.10083238]
[1744780368453,7.9413924,126.4,126.36,9.10083238]
[1744780369452,0.03,126.4,126.38,9.10083238]
[1744780371162,0.03,126.4,126.37,0.14216157]
[1744780371334,0.03,126.4,126.37,9.24299395]
[1744780372042,9.10083238,126.38,126.3,7.91765637]
[1744780372356,9.10083238,126.34,126.29,0.063]
[1744780372560,17.01598197,126.34,126.29,0.063]
[1744780372735,7.91514959,126.34,126.29,9.16383238]
[1744780373148,7.91514959,126.34,126.29,35.16383238]
[1744780373337,14.38794178,126.35,126.3,9.24299395]
[1744780373540,10.9,126.36,126.32,9.10083238]
[1744780374567,18.81417502,126.36,126.31,9.10083238]
[1744780375056,18.81417502,126.36,126.32,9.24299395]
[1744780375263,7.91417502,126.36,126.32,14.34962632]
[1744780377239,22.12163977,126.36,126.31,14.20746475]
[1744780378856,7.91417502,126.36,126.32,14.20746475]
[1744780379253,22.12163977,126.36,126.32,26.0]
[1744780379962,14.20746475,126.35,126.3,26.0]
[1744780380160,14.20746475,126.35,126.31,26.0]
[1744780380360,14.20746475,126.35,126.29,14.27046475]
[1744780380666,14.20746475,126.35,126.29,40.27046475]
[1744780380667,7.91577614,126.33,126.29,40.27046475]
[1744780380852,7.91577614,126.33,126.3,14.20746475]
[1744780382145,9.51983764,126.34,126.31,14.20746475]
[1744780385966,9.51983764,126.34,126.29,33.9810217]
[1744780386272,9.51983764,126.34,126.3,14.20746475]
[1744780387277,9.48007055,126.37,126.33,14.20746475]
[1744780387466,9.48007055,126.37,126.34,14.20746475]
[1744780388962,9.48007055,126.37,126.33,14.20746475]
[1744780389277,9.48007055,126.37,126.33,22.12316411]
[1744780389460,9.48007055,126.37,126.33,14.20746475]
[1744780391777,9.48017596,126.37,126.34,14.20746475]
[1744780391977,9.48017596,126.37,126.33,0.14216157]
[1744780392181,9.48017596,126.37,126.33,14.34962632]
[1744780395175,1.5668,126.37,126.34,9.09094248]
[1744780395477,9.48014027,126.37,126.34,9.09094248]
[1744780395779,18.57108275,126.37,126.32,43.00706831]
[1744780397183,18.57108275,126.37,126.32,35.09094248]
[1744780397483,18.57108275,126.37,126.32,43.00717636]